fUSD/lending_fUSD_20260516
["ID","MTS","AMOUNT","RATE_DAILY","PERIOD"]
[422374978,1778896242000,-150.0,0.00014404,2]
[422374979,1778896242000,-3035.24731226,0.00014465,2]
[422374986,1778896242000,-500.0,0.00014504,2]
[422374987,1778896242000,-500.0,0.00014504,2]
[422374985,1778896242000,-811.71,0.000145,2]
[422374982,1778896242000,-150.0,0.00014487,2]
[422374984,1778896242000,-150.0,0.00014487,2]
[422374983,1778896242000,-150.0,0.00014487,2]
[422374989,1778896242000,-650.39,0.00014504,2]
[422374997,1778896242000,-151.0,0.00014579,2]
[422374999,1778896242000,-247.33643274,0.00014579,2]
[422374998,1778896242000,-247.33643274,0.00014579,2]
[422374980,1778896242000,-6181.78393214,0.00014465,2]
[422374990,1778896242000,-160.0,0.0001455,2]
[422374988,1778896242000,-524.60272741,0.00014504,2]
[422375011,1778896242000,-500.0,0.00014763,2]
[422375000,1778896242000,-247.649039,0.00014602,2]
[422375001,1778896242000,-150.0,0.00014653,2]
[422375002,1778896242000,-176.284554,0.00014675,2]
[422375005,1778896242000,-699.37,0.00014698,2]
[422374992,1778896242000,-179.488622,0.0001455,2]
[422374993,1778896242000,-150.0,0.0001457,2]
[422374991,1778896242000,-169.744311,0.0001455,2]
[422374994,1778896242000,-405.293119,0.00014577,2]
[422374996,1778896242000,-151.0,0.00014579,2]
[422374995,1778896242000,-280.8,0.00014579,2]
[422375062,1778896243000,-154.27779879,0.00014986,2]
[422375057,1778896243000,-153.39197479,0.00014986,2]
[422375059,1778896243000,-461.0,0.00014986,2]
[422375060,1778896243000,-297.28384211,0.00014986,2]
[422375061,1778896243000,-155.82071843,0.00014986,2]
[422375066,1778896243000,-500.0,0.00014998,2]
[422375063,1778896243000,-1020.67010647,0.0001499,2]
[422375064,1778896243000,-1020.67010647,0.0001499,2]
[422375065,1778896243000,-151.0,0.00014997,2]
[422375067,1778896243000,-430.33827223,0.00014998,2]
[422375070,1778896243000,-1102.41946985,0.00014999,5]
[422375079,1778896243000,-461495.1768531,0.00014999,2]
[422375071,1778896243000,-500.0,0.00014999,2]
[422375069,1778896243000,-1818.8478599,0.00014999,2]
[422375080,1778896243000,-592.09562387,0.00014999,2]
[422375078,1778896243000,-9343.8559093,0.00014999,2]
[422375058,1778896243000,-233.90448621,0.00014986,2]
[422375075,1778896243000,-500.0,0.00014999,2]
[422375072,1778896243000,-487.73013906,0.00014999,2]
[422375073,1778896243000,-500.0,0.00014999,2]
[422375074,1778896243000,-500.0,0.00014999,2]
[422375068,1778896243000,-501.03112085,0.00014998,2]
[422375047,1778896243000,-1166.0,0.000149,5]
[422375050,1778896243000,-3250.76299245,0.000149,2]
[422375054,1778896243000,-500.0,0.00014924,2]
[422375034,1778896243000,-735.51393596,0.00014899,2]
[422375032,1778896243000,-283.01827461,0.00014899,2]
[422375033,1778896243000,-735.51393598,0.00014899,2]
[422375036,1778896243000,-283.01827459,0.000149,2]
[422375044,1778896243000,-283.01827459,0.000149,2]
[422375045,1778896243000,-2277.0,0.000149,2]
[422375035,1778896243000,-735.51393596,0.00014899,2]
[422375037,1778896243000,-735.51393596,0.000149,2]
[422375038,1778896243000,-735.51393596,0.000149,2]
[422375041,1778896243000,-25000.0,0.000149,3]
[422375055,1778896243000,-156.08616428,0.00014986,2]
[422375042,1778896243000,-1447.0,0.000149,5]
[422375039,1778896243000,-203.62810769,0.000149,2]
[422375040,1778896243000,-7778.15906558,0.000149,2]
[422375046,1778896243000,-3035.24731226,0.000149,2]
[422375048,1778896243000,-6181.78393214,0.000149,2]
[422375051,1778896243000,-150.0,0.00014903,2]
[422375053,1778896243000,-547.76457235,0.00014922,2]
[422375076,1778896243000,-252.86826291,0.00014999,2]
[422375052,1778896243000,-2970.95687115,0.00014918,2]
[422375049,1778896243000,-735.51393596,0.000149,2]
[422375056,1778896243000,-151.79165144,0.00014986,2]
[422375043,1778896243000,-17456.95410335,0.000149,3]
[422375092,1778896243000,-650.39,0.00014999,2]
[422375084,1778896243000,-650.39,0.00014999,2]
[422375093,1778896243000,-650.39,0.00014999,2]
[422375082,1778896243000,-650.39,0.00014999,2]
[422375112,1778896243000,-300.0,0.00014999,2]
[422375113,1778896243000,-183431.18319037,0.00015,2]
[422375115,1778896243000,-673.88187942,0.00015,2]
[422375114,1778896243000,-503.44057045,0.00015,2]
[422375116,1778896243000,-591.822,0.00015,2]
[422375118,1778896243000,-598.0,0.00015,2]
[422375119,1778896243000,-197369.62414276,0.00015,2]
[422375117,1778896243000,-2091557.69753721,0.00015,2]
[422375120,1778896243000,-346.59,0.00015,2]
[422375121,1778896243000,-200.0,0.00015,2]
[422375122,1778896243000,-174.08,0.00015,2]
[422375123,1778896243000,-150.116,0.00015,2]
[422375124,1778896243000,-192.979,0.00015,2]
[422375125,1778896243000,-165.885,0.00015,2]
[422375127,1778896243000,-242.781,0.00015,2]
[422375126,1778896243000,-250.0,0.00015,2]
[422375128,1778896243000,-150.833,0.00015,2]
[422375131,1778896243000,-2365135.71247387,0.00015,2]
[422375129,1778896243000,-150.0,0.00015,2]
[422375130,1778896243000,-150.716,0.00015,2]
[422375109,1778896243000,-150.0,0.00014999,2]
[422375111,1778896243000,-300.0,0.00014999,2]
[422375110,1778896243000,-300.0,0.00014999,2]
[422375105,1778896243000,-500.0,0.00014999,2]
[422375083,1778896243000,-650.39,0.00014999,2]
[422375081,1778896243000,-921.1494369,0.00014999,2]
[422375090,1778896243000,-650.39,0.00014999,2]
[422375091,1778896243000,-650.39,0.00014999,2]
[422375085,1778896243000,-650.39,0.00014999,2]
[422375087,1778896243000,-650.39,0.00014999,2]
[422375088,1778896243000,-650.39,0.00014999,2]
[422375107,1778896243000,-411.21170115,0.00014999,2]
[422375089,1778896243000,-650.39,0.00014999,2]
[422375095,1778896243000,-650.39,0.00014999,2]
[422375104,1778896243000,-500.0,0.00014999,2]
[422375086,1778896243000,-650.39,0.00014999,2]
[422375103,1778896243000,-500.0,0.00014999,2]
[422375108,1778896243000,-97772.3697188,0.00014999,2]
[422375097,1778896243000,-650.39,0.00014999,2]
[422375100,1778896243000,-650.43075363,0.00014999,2]
[422375101,1778896243000,-2404.5994597,0.00014999,2]
[422375106,1778896243000,-359.6787784,0.00014999,2]
[422375096,1778896243000,-650.39,0.00014999,2]
[422375102,1778896243000,-500.0,0.00014999,2]
[422375098,1778896243000,-650.39,0.00014999,2]
[422375094,1778896243000,-650.39,0.00014999,2]
[422375099,1778896243000,-650.39,0.00014999,2]
[422375132,1778896244000,-671.62652613,0.00015,2]
[422375139,1778896246000,-6893.68141213,0.000147,2]
[422375144,1778896725000,207.26988,0.0003013,120]
[422375147,1778896777000,352.55,7.582e-05,2]
[422375146,1778896777000,352.55,7.233e-05,2]
[422375145,1778896777000,352.55,6.885e-05,2]
[422375148,1778896778000,352.55,7.93e-05,2]
[422375149,1778896778000,352.55,8.278e-05,2]
[422375151,1778896778000,352.55,8.974e-05,2]
[422375152,1778896778000,352.55,9.322e-05,2]
[422375150,1778896778000,352.55,8.626e-05,2]
[422375153,1778896779000,352.55,9.671e-05,2]
[422375154,1778896911000,182.0,0.0003013,120]
[422375157,1778897078000,170.01,9.812e-05,2]
[422375160,1778897200000,-352.55,0.00010019,2]
[422375161,1778897200000,-115.69403706,0.000102,2]
[422375165,1778897353000,-99.24111478,0.000102,2]
[422375164,1778897353000,-167.06305135,0.00010098,2]
[422375166,1778897385000,429.47,0.00030137,120]
[422375167,1778897396000,214.73,0.00030137,120]
[422375168,1778897397000,882.93872964,0.0003,120]
[422375230,1778897432000,-550.91,0.00013698,2]
[422375224,1778897432000,-2000.0,0.000135,2]
[422375229,1778897432000,-366.25339447,0.00013698,2]
[422375221,1778897432000,-500.0,0.00013356,2]
[422375220,1778897432000,-352.55,0.00013152,2]
[422375228,1778897432000,-500.0,0.00013698,2]
[422375227,1778897432000,-500.0,0.00013698,2]
[422375225,1778897432000,-352.55,0.000135,2]
[422375218,1778897432000,-150.0,0.00012938,2]
[422375226,1778897432000,-420.0,0.00013666,2]
[422375219,1778897432000,-159.15011264,0.00013052,2]
[422375223,1778897432000,-150.74798838,0.00013488,2]
[422375238,1778897432000,-255.0,0.00014038,2]
[422375234,1778897432000,-166.66,0.00013836,2]
[422375233,1778897432000,-166.66,0.00013699,2]
[422375235,1778897432000,-166.66,0.00013973,2]
[422375236,1778897432000,-250.0,0.00014,2]
[422375222,1778897432000,-500.0,0.00013356,2]
[422375241,1778897432000,-166.66,0.00014384,2]
[422375239,1778897432000,-166.66,0.0001411,2]
[422375240,1778897432000,-166.66,0.00014247,2]
[422375242,1778897432000,-10450.6691501,0.0001439,2]
[422375243,1778897432000,-1223.0,0.00014481,2]
[422375244,1778897432000,-4228.8,0.00014497,2]
[422375245,1778897432000,-1018.84,0.00014497,2]
[422375232,1778897432000,-200.0,0.00013699,2]
[422375231,1778897432000,-860.0,0.00013699,2]
[422375215,1778897432000,-6454.3,0.00012893,2]
[422375214,1778897432000,-999.99,0.00012893,2]
[422375191,1778897432000,-352.55,0.00010367,2]
[422375190,1778897432000,-67.82193657,0.000102,2]
[422375192,1778897432000,-352.55,0.00010715,2]
[422375194,1778897432000,-252.29120606,0.0001122,2]
[422375193,1778897432000,-352.55,0.00011063,2]
[422375195,1778897432000,-221.14428046,0.00011312,2]
[422375197,1778897432000,-352.55,0.0001176,2]
[422375196,1778897432000,-352.55,0.00011411,2]
[422375199,1778897432000,-352.55,0.00012108,2]
[422375198,1778897432000,-1549.076169,0.00012047,2]
[422375200,1778897432000,-171.19,0.00012329,2]
[422375201,1778897432000,-187.04,0.00012405,2]
[422375216,1778897432000,-150.99,0.00012893,2]
[422375204,1778897432000,-310.0,0.00012455,2]
[422375203,1778897432000,-300.0,0.00012455,2]
[422375206,1778897432000,-157.58359209,0.00012456,2]
[422375205,1778897432000,-194.96640791,0.00012456,2]
[422375209,1778897432000,-287.11844115,0.00012804,2]
[422375208,1778897432000,-290.63274834,0.00012739,2]
[422375207,1778897432000,-274.19,0.00012532,2]
[422375217,1778897432000,-299.99,0.00012893,2]
[422375211,1778897432000,-4999.99,0.00012893,2]
[422375246,1778897432000,-407.81,0.00014497,2]
[422375213,1778897432000,-4713.60202206,0.00012893,2]
[422375210,1778897432000,-65.43155885,0.00012804,2]
[422375212,1778897432000,-5286.38797794,0.00012893,2]
[422375202,1778897432000,-160.17,0.00012405,2]
[422375248,1778897432000,-417.0,0.0001452,2]
[422375237,1778897432000,-295.79,0.00014007,2]
[422375250,1778897432000,-191.828,0.00014698,2]
[422375277,1778897432000,-59176.832716,0.00014978,2]
[422375275,1778897432000,-193.9447139,0.0001496,2]
[422375279,1778897432000,-550.91,0.00014981,2]
[422375278,1778897432000,-15909.8727351,0.00014978,2]
[422375286,1778897432000,-500.0,0.00014999,2]
[422375285,1778897432000,-151.0,0.00014997,2]
[422375284,1778897432000,-2550.0992583,0.00014982,2]
[422375288,1778897432000,-500.0,0.00014999,2]
[422375287,1778897432000,-151.77514488,0.00014999,2]
[422375289,1778897432000,-500.0,0.00014999,2]
[422375290,1778897432000,-287.84819081,0.00014999,2]
[422375292,1778897432000,-500.0,0.00014999,2]
[422375274,1778897432000,-622.06521321,0.00014941,2]
[422375293,1778897432000,-500.0,0.00014999,2]
[422375291,1778897432000,-500.0,0.00014999,2]
[422375252,1778897432000,-5576.62609001,0.000147,2]
[422375297,1778897432000,-550.91,0.00014999,2]
[422375296,1778897432000,-550.91,0.00014999,2]
[422375298,1778897432000,-550.91,0.00014999,2]
[422375299,1778897432000,-550.91,0.00014999,2]
[422375301,1778897432000,-550.91,0.00014999,2]
[422375300,1778897432000,-550.91,0.00014999,2]
[422375302,1778897432000,-550.91,0.00014999,2]
[422375304,1778897432000,-550.91,0.00014999,2]
[422375303,1778897432000,-550.91,0.00014999,2]
[422375305,1778897432000,-550.91,0.00014999,2]
[422375295,1778897432000,-177.00778404,0.00014999,2]
[422375276,1778897432000,-3191.23833026,0.00014977,2]
[422375294,1778897432000,-241.41109735,0.00014999,2]
[422375280,1778897432000,-8132.3508749,0.00014982,2]
[422375282,1778897432000,-3122.5383593,0.00014982,2]
[422375249,1778897432000,-350.0,0.00014664,2]
[422375254,1778897432000,-1017.72,0.000148,2]
[422375255,1778897432000,-481.37,0.0001481,2]
[422375253,1778897432000,-186.0,0.0001476,2]
[422375251,1778897432000,-790.746,0.00014698,2]
[422375257,1778897432000,-802.73909,0.0001485,2]
[422375247,1778897432000,-3631.0,0.0001452,2]
[422375258,1778897432000,-802.7391,0.0001485,2]
[422375256,1778897432000,-555.0,0.00014824,2]
[422375264,1778897432000,-1445.75657214,0.00014898,2]
[422375265,1778897432000,-2212.43482613,0.000149,3]
[422375261,1778897432000,-1445.75657218,0.00014897,2]
[422375306,1778897432000,-550.91,0.00014999,2]
[422375260,1778897432000,-200.0,0.0001488,2]
[422375273,1778897432000,-598.29322813,0.00014924,2]
[422375266,1778897432000,-5000.0,0.000149,2]
[422375281,1778897432000,-25901.3510777,0.00014982,2]
[422375283,1778897432000,-98945.93444,0.00014982,2]
[422375272,1778897432000,-290.83166204,0.00014908,2]
[422375271,1778897432000,-343.1,0.000149,2]
[422375270,1778897432000,-735.9949011,0.000149,2]
[422375268,1778897432000,-6501.5259849,0.000149,2]
[422375263,1778897432000,-1445.75657214,0.00014898,2]
[422375267,1778897432000,-1883.01955518,0.000149,2]
[422375262,1778897432000,-1445.75657214,0.00014897,2]
[422375259,1778897432000,-802.7391,0.0001486,2]
[422375269,1778897432000,-159.15011264,0.000149,2]
[422375313,1778897433000,-550.91,0.00014999,2]
[422375319,1778897433000,-300.0,0.00014999,2]
[422375314,1778897433000,-550.91,0.00014999,2]
[422375312,1778897433000,-550.91,0.00014999,2]
[422375324,1778897433000,-300.0,0.00014999,2]
[422375309,1778897433000,-550.91,0.00014999,2]
[422375323,1778897433000,-666.0,0.00014999,2]
[422375311,1778897433000,-550.91,0.00014999,2]
[422375310,1778897433000,-550.91,0.00014999,2]
[422375308,1778897433000,-550.91,0.00014999,2]
[422375318,1778897433000,-1090.63123349,0.00014999,5]
[422375307,1778897433000,-550.91,0.00014999,2]
[422375320,1778897433000,-300.0,0.00014999,2]
[422375317,1778897433000,-551.09864501,0.00014999,2]
[422375316,1778897433000,-550.91,0.00014999,2]
[422375315,1778897433000,-550.91,0.00014999,2]
[422375334,1778897433000,-1254.41808677,0.00015,2]
[422375335,1778897433000,-464.29087844,0.00015,2]
[422375321,1778897433000,-666.0,0.00014999,2]
[422375331,1778897433000,-16458.95786122,0.00015,2]
[422375330,1778897433000,-643991.66709073,0.00015,2]
[422375332,1778897433000,-17898.24120361,0.00015,2]
[422375329,1778897433000,-150.0,0.00015,2]
[422375327,1778897433000,-1166.0,0.00015,5]
[422375325,1778897433000,-300.0,0.00014999,2]
[422375326,1778897433000,-1455.0,0.00015,5]
[422375322,1778897433000,-300.0,0.00014999,2]
[422375328,1778897433000,-150.0,0.00015,2]
[422375333,1778897433000,-107427.32979281,0.00015,2]
[422375345,1778897437000,-65.45906251,0.00014999,2]
[422375343,1778897437000,-1190.46450301,0.000147,2]
[422375344,1778897437000,-195.88407736,0.00014999,2]
[422375342,1778897437000,-2527.28622367,0.000147,2]
[422375349,1778897437000,-500.0,0.00014999,2]
[422375347,1778897437000,-78.94905031,0.00014999,2]
[422375348,1778897437000,-421.05094969,0.00014999,2]
[422375350,1778897437000,-500.0,0.00014999,2]
[422375356,1778897437000,-134.43693914,0.00014999,2]
[422375354,1778897437000,-500.0,0.00014999,2]
[422375352,1778897437000,-500.0,0.00014999,2]
[422375351,1778897437000,-500.0,0.00014999,2]
[422375355,1778897437000,-500.0,0.00014999,2]
[422375353,1778897437000,-500.0,0.00014999,2]
[422375346,1778897437000,-500.0,0.00014999,2]
[422375357,1778897439000,-374.68915625,0.00013698,2]
[422375379,1778897440000,-500.0,0.00014999,2]
[422375371,1778897440000,-500.0,0.00014999,2]
[422375376,1778897440000,-500.0,0.00014999,2]
[422375372,1778897440000,-500.0,0.00014999,2]
[422375373,1778897440000,-500.0,0.00014999,2]
[422375375,1778897440000,-500.0,0.00014999,2]
[422375377,1778897440000,-500.0,0.00014999,2]
[422375374,1778897440000,-500.0,0.00014999,2]
[422375369,1778897440000,-500.0,0.00014999,2]
[422375362,1778897440000,-365.56306086,0.00014999,2]
[422375361,1778897440000,-500.0,0.00014899,2]
[422375366,1778897440000,-500.0,0.00014999,2]
[422375363,1778897440000,-500.0,0.00014999,2]
[422375368,1778897440000,-500.0,0.00014999,2]
[422375359,1778897440000,-2875.32198546,0.000147,2]
[422375360,1778897440000,-1445.75657214,0.00014899,2]
[422375364,1778897440000,-500.0,0.00014999,2]
[422375365,1778897440000,-500.0,0.00014999,2]
[422375367,1778897440000,-500.0,0.00014999,2]
[422375378,1778897440000,-500.0,0.00014999,2]
[422375380,1778897440000,-500.0,0.00014999,2]
[422375358,1778897440000,-125.31084375,0.00013698,2]
[422375383,1778897440000,-500.0,0.00014999,2]
[422375382,1778897440000,-500.0,0.00014999,2]
[422375405,1778897440000,-290.9,0.00015,2]
[422375403,1778897440000,-500.0,0.00014999,2]
[422375399,1778897440000,-2000.0,0.00015,2]
[422375400,1778897440000,-353.62452408,0.00015,2]
[422375398,1778897440000,-752.76997313,0.00015,2]
[422375397,1778897440000,-434592.37533331,0.00015,2]
[422375393,1778897440000,-4189384.10348539,0.00015,2]
[422375395,1778897440000,-3144.531642,0.00015,14]
[422375396,1778897440000,-8082.43942848,0.00015,2]
[422375392,1778897440000,-500.0,0.00014999,2]
[422375370,1778897440000,-500.0,0.00014999,2]
[422375391,1778897440000,-500.0,0.00014999,2]
[422375394,1778897440000,-2076.06689717,0.00015,2]
[422375389,1778897440000,-376.16094185,0.00014999,2]
[422375390,1778897440000,-500.0,0.00014999,2]
[422375386,1778897440000,-500.0,0.00014999,2]
[422375384,1778897440000,-500.0,0.00014999,2]
[422375387,1778897440000,-500.0,0.00014999,2]
[422375385,1778897440000,-500.0,0.00014999,2]
[422375388,1778897440000,-500.0,0.00014999,2]
[422375381,1778897440000,-500.0,0.00014999,2]
[422375412,1778897445000,-1759.0,0.000147,2]
[422375416,1778897445000,-500.0,0.00014999,2]
[422375415,1778897445000,-1445.75657214,0.00014899,2]
[422375418,1778897445000,-193.95489463,0.00014999,2]
[422375417,1778897445000,-500.0,0.00014999,2]
[422375419,1778897445000,-45435.9046838,0.00015,2]
[422375414,1778897445000,-719.50048445,0.000147,2]
[422375421,1778897446000,-8965.13269726,0.00015,2]
[422375420,1778897446000,-2276.97830001,0.00015,2]
[422375427,1778897447000,-290.93655106,0.00015,2]
[422375428,1778897466000,1168.83,0.00030137,120]
[422375429,1778897575000,1083.466,0.00030137,120]
[422375430,1778897712000,619.87932464,0.00030136,120]
[422375433,1778897786000,163.49,9.041e-05,2]
[422375432,1778897786000,163.49,6.848e-05,2]
[422375434,1778897816000,300.0,0.00030136,120]
[422375435,1778897887000,-163.49,0.00011234,2]
[422375437,1778897887000,-286.34,0.00012405,2]
[422375436,1778897887000,-189.20436024,0.00011234,2]
[422375438,1778897887000,-355.17,0.00012405,2]
[422375441,1778897887000,-286.34,0.00012715,2]
[422375440,1778897887000,-191.82958583,0.00012582,2]
[422375442,1778897887000,-4592.56569087,0.00012739,2]
[422375443,1778897887000,-1200.0,0.00012838,2]
[422375439,1778897887000,-632.597,0.00012582,2]
[422375444,1778897887000,-13772.46336306,0.00012839,2]
[422375446,1778898053000,275.78,0.0003013,120]
[422375447,1778898153000,1000.0,0.0003,120]
[422375448,1778898159000,151.000063,0.0003013,120]
[422375449,1778898179000,367.07713527,0.00030123,120]
[422375450,1778898179000,200.1607,0.00030136,120]
[422375451,1778898190000,2044.0,0.0003,120]
[422375452,1778898195000,275.30785145,0.00030123,120]
[422375454,1778898321000,3000.0,0.00030137,120]
[422375455,1778898469000,500.0,0.00029452,120]
[422375457,1778898534000,163.49,6.796e-05,2]
[422375458,1778898582000,202.85396254,0.00030079,120]
[422375459,1778898588000,152.1404719,0.00030079,120]
[422375496,1778898632000,-2215.735,0.00012825,2]
[422375490,1778898632000,-171.8,0.00012405,2]
[422375492,1778898632000,-760.476,0.00012582,2]
[422375494,1778898632000,-18.815,0.00012715,2]
[422375491,1778898632000,-177.58,0.00012405,2]
[422375495,1778898632000,-152.985,0.00012715,2]
[422375497,1778898632000,-1917.57412181,0.00012825,2]
[422375498,1778898632000,-54.05874331,0.00012839,2]
[422375502,1778898632000,-115529.1280794,0.00012839,2]
[422375499,1778898632000,-6246.44652404,0.00012839,2]
[422375501,1778898632000,-367.55852767,0.00012839,2]
[422375500,1778898632000,-885.56582339,0.00012839,2]
[422375493,1778898632000,-160.329,0.00012582,2]
[422375565,1778898638000,-481.38,0.00014235,2]
[422375547,1778898638000,-166.66,0.00013973,2]
[422375542,1778898638000,-600.0,0.0001384,2]
[422375545,1778898638000,-2553.99223892,0.0001384,2]
[422375538,1778898638000,-300.0,0.00013781,2]
[422375540,1778898638000,-166.66,0.00013836,2]
[422375544,1778898638000,-716.39457918,0.0001384,2]
[422375535,1778898638000,-4133.30912172,0.00013747,2]
[422375549,1778898638000,-4133.30912172,0.00013978,2]
[422375563,1778898638000,-4133.30912172,0.00014208,2]
[422375533,1778898638000,-166.66,0.00013699,2]
[422375551,1778898638000,-503.40654584,0.00013978,2]
[422375590,1778898638000,-677.74,0.00014504,2]
[422375569,1778898638000,-1138.42484908,0.00014336,2]
[422375559,1778898638000,-1138.42484908,0.00014054,2]
[422375557,1778898638000,-310.0,0.0001404,2]
[422375553,1778898638000,-2000.0,0.00013992,2]
[422375555,1778898638000,-250.0,0.00014,2]
[422375561,1778898638000,-166.66,0.0001411,2]
[422375573,1778898638000,-500.0,0.00014384,2]
[422375571,1778898638000,-166.66,0.00014384,2]
[422375586,1778898638000,-5553.3264792,0.00014503,2]
[422375534,1778898638000,-200.0,0.00013699,2]
[422375589,1778898638000,-299.99,0.00014504,2]
[422375575,1778898638000,-4133.30912172,0.00014439,2]
[422375580,1778898638000,-350.0,0.00014472,2]
[422375567,1778898638000,-166.66,0.00014247,2]
[422375536,1778898638000,-1138.42484908,0.00013771,2]
[422375521,1778898638000,-1138.42484908,0.00013489,2]
[422375527,1778898638000,-490.0,0.00013698,2]
[422375593,1778898638000,-9999.99,0.00014504,2]
[422375507,1778898638000,-4133.30912172,0.00013056,2]
[422375506,1778898638000,-171.8,0.00013025,2]
[422375504,1778898638000,-317450.79240219,0.00012839,2]
[422375505,1778898638000,-1138.42484911,0.00012925,2]
[422375508,1778898638000,-1138.42484908,0.00013207,2]
[422375509,1778898638000,-4133.30912172,0.00013286,2]
[422375513,1778898638000,-500.0,0.00013356,2]
[422375514,1778898638000,-1298.25,0.00013455,2]
[422375510,1778898638000,-213.15,0.00013286,2]
[422375517,1778898638000,-151.33807361,0.00013488,2]
[422375515,1778898638000,-150.0,0.00013488,2]
[422375512,1778898638000,-500.0,0.00013356,2]
[422375516,1778898638000,-151.89021174,0.00013488,2]
[422375511,1778898638000,-171.8,0.00013335,2]
[422375518,1778898638000,-150.00000001,0.00013488,2]
[422375519,1778898638000,-151.38609086,0.00013488,2]
[422375520,1778898638000,-230.71482246,0.00013488,2]
[422375522,1778898638000,-150.0,0.00013489,2]
[422375523,1778898638000,-4133.30912172,0.00013517,2]
[422375528,1778898638000,-500.0,0.00013698,2]
[422375525,1778898638000,-500.0,0.00013698,2]
[422375529,1778898638000,-500.0,0.00013698,2]
[422375524,1778898638000,-171.8,0.00013645,2]
[422375530,1778898638000,-648.18,0.00013698,2]
[422375531,1778898638000,-648.18,0.00013698,2]
[422375526,1778898638000,-500.0,0.00013698,2]
[422375532,1778898638000,-461.79272173,0.00013698,2]
[422375596,1778898638000,-5000.01,0.00014549,2]
[422375635,1778898638000,-153.61309489,0.000149,2]
[422375595,1778898638000,-6111.0,0.00014548,2]
[422375656,1778898638000,-151.0,0.00014997,2]
[422375660,1778898638000,-17000.0,0.00014998,2]
[422375658,1778898638000,-500.0,0.00014997,2]
[422375673,1778898638000,-703.09747911,0.00014998,2]
[422375671,1778898638000,-703.09747911,0.00014998,2]
[422375677,1778898638000,-703.09747911,0.00014998,2]
[422375675,1778898638000,-703.09747911,0.00014998,2]
[422375662,1778898638000,-703.09747911,0.00014998,2]
[422375652,1778898638000,-250.0,0.00014987,2]
[422375666,1778898638000,-703.09747911,0.00014998,2]
[422375667,1778898638000,-703.09747911,0.00014998,2]
[422375664,1778898638000,-703.09747911,0.00014998,2]
[422375679,1778898638000,-703.09747911,0.00014998,2]
[422375683,1778898638000,-703.09747911,0.00014998,2]
[422375681,1778898638000,-703.09747911,0.00014998,2]
[422375685,1778898638000,-703.09747911,0.00014998,2]
[422375691,1778898638000,-703.09747911,0.00014998,2]
[422375687,1778898638000,-703.09747911,0.00014998,2]
[422375689,1778898638000,-703.09747911,0.00014998,2]
[422375695,1778898638000,-703.09747911,0.00014998,2]
[422375693,1778898638000,-703.09747911,0.00014998,2]
[422375705,1778898638000,-703.09747911,0.00014998,2]
[422375699,1778898638000,-703.09747911,0.00014998,2]
[422375697,1778898638000,-703.09747911,0.00014998,2]
[422375701,1778898638000,-703.09747911,0.00014998,2]
[422375703,1778898638000,-703.09747911,0.00014998,2]
[422375582,1778898638000,-20962.6860029,0.00014503,2]
[422375654,1778898638000,-250.0,0.00014995,2]
[422375648,1778898638000,-350.0,0.00014969,2]
[422375669,1778898638000,-703.09747911,0.00014998,2]
[422375633,1778898638000,-5000.0,0.000149,2]
[422375577,1778898638000,-350.0,0.00014457,2]
[422375650,1778898638000,-250.0,0.00014977,2]
[422375584,1778898638000,-7082.6517408,0.00014503,2]
[422375598,1778898638000,-1138.42484908,0.00014618,2]